Cogmind - Beta 14 @@@ ROGUE MODE // 2024.10.21 @ 13:50:16 Player: Some Pennies Result: Destroyed by D-53 Grenadier with Mini Grenade Launcher Performance ------------- Evolutions (0) 0 Regions Visited (2) 400 Robots Destroyed (27) 135 Value Destroyed (567) 567 Prototype IDs (0) 0 Alien Tech Used (0) 0 Bonus (24) 24 TOTAL SCORE: 1126 Bonus ------- High Alert Combat Kills 24 Cogmind --------- Core Integrity 0/250 Matter 300/300 Energy 95/100 System Corruption 0% Temperature Cool (0) Movement Core (50) Location -10/Mines Parts ------- > --- POWER (1) -------- (None) > --- PROPULSION (2) --- (None) > --- UTILITY (2) ------ (None) > --- WEAPON (2) ------- (None) > --- INVENTORY (5) ---- Light Nuclear Core Light Treads Heat Sink Heavy Explosive Trap Heavy Explosive Trap Peak State ------------ > --- POWER ------------ Ion Engine > --- PROPULSION ------- Light Treads Light Treads > --- UTILITY ---------- Small Storage Unit Improved Terrain Scanner > --- WEAPON ----------- Particle Gun Assault Rifle > --- INVENTORY -------- Light Ion Engine Light Nuclear Core Heat Sink Seismic Detector Medium Laser Small Laser Grenade Launcher Mining Laser [Rating: 11] Favorites ----------- Power Ion Engine Engine Ion Engine Propulsion Light Treads Treads Light Treads Utility Improved Terrain Scanner Device Improved Terrain Scanner Storage High-capacity Storage Unit Weapon Assault Rifle Energy Gun Particle Gun Ballistic Gun Assault Rifle Launcher Grenade Launcher Build | -11 -10 -10 ------- Run | Yrd Mat Min Slots Evolved . | . . . Power . | . . . Propulsion . | . . . Utility . | . . . Weapon . | . . . Parts Attached 21 | 7 10 4 Power 2 | 1 1 . Engine 2 | 1 1 . Core . | . . . Reactor . | . . . Propulsion 3 | 2 . 1 Treads 3 | 2 . 1 Leg . | . . . Wheel . | . . . Hover . | . . . Flight . | . . . Utility 4 | 2 2 . Device 1 | 1 . . Storage 3 | 1 2 . Processor . | . . . Hackware . | . . . Protection . | . . . Artifact . | . . . Weapon 12 | 2 7 3 Energy Gun 6 | 1 4 1 Energy Cannon . | . . . Ballistic Gun 1 | 1 . . Ballistic Cannon . | . . . Launcher 5 | . 3 2 Special Weapon . | . . . Impact Weapon . | . . . Slashing Weapon . | . . . Piercing Weapon . | . . . Special Melee Weapon . | . . . Unidentified Prototypes . | . . . Parts Lost 7 | . . 7 Power 1 | . . 1 Propulsion 3 | . . 3 Utility 1 | . . 1 Weapon 2 | . . 2 Highest Loss Streak 6 | . . 6 To Critical Strikes . | . . . Average Slot Usage (%) 99 | . 100 99 Engine 13 | . 14 13 Treads 27 | . 28 27 Device 14 | . 14 14 Storage 14 | . 14 14 Energy Gun 12 | . 13 10 Ballistic Gun 14 | . 14 14 Launcher 1 | . . 3 Peak Build Rating 11 | 9 11 11 Average Rating 9 | 6 10 10 On Entrance 6 | . 9 10 Naked Turns . | . . . Heaviest Build 51 | 15 50 51 Greatest Support 40 | 40 40 40 Greatest Overweight (x) 1 | 1 1 1 Average Overweight (x) . | . . 1 Largest Inventory Capacity 20 | 8 20 20 Average Capacity 13 | 7 9 19 Most Carried 14 | 4 11 14 Average Carried 8 | 2 8 11 Final Capacity 20 | 8 20 5 Final Carried 11 | 4 11 5 Class Distribution -------------------- 71% | Mutant 28% | Scavenger-Mutant Dominant Class ---------------- Mutant | -10/Materials Scavenger-Mutant | -10/Mines Resources | -11 -10 -10 ----------- Run | Yrd Mat Min Matter Collected 655 | 303 263 89 Remotely . | . . . Salvage Created 879 | 119 613 147 Parts 52 | 11 37 4 Haulers Intercepted 2 | . 2 . Recyclers Shooed . | . . . Parts Field Recycled . | . . . Retrieved Matter . | . . . Parts Self-Destructed . | . . . Prevented . | . . . Kills | -11 -10 -10 ------- Run | Yrd Mat Min Combat Hostiles Destroyed 15 | . 13 2 Guns 8 | . 7 1 AOE 7 | . 6 1 Classes Destroyed 8 | 3 5 . Worker 1 | 1 . . Builder 1 | . 1 . Tunneler 2 | 2 . . Hauler 2 | . 2 . Recycler 3 | 1 1 1 Watcher 3 | . 3 . Swarmer 3 | . 3 . Grunt 12 | . 10 2 Best Kill Streak 5 | 2 5 2 Combat Bots Only 4 | . 4 2 Max Kills in Single Turn 4 | 1 4 1 Gunslinging . | . . . Exploded 3 | . 3 1 Melee . | . . . Uniques/NPCs Destroyed . | . . . Combat | -11 -10 -10 -------- Run | Yrd Mat Min Hostile Shots Fired 70 | . 54 16 Missed 20 | . 17 3 Damage Taken 941 | . 420 521 Core 253 | . 71 182 Absorbed by Shields . | . . . Core Remaining (%) 100 | 100 . . Volleys Fired 66 | 11 46 9 Largest 2 | 2 2 2 Hottest 85 | 70 85 85 Shots Fired 123 | 22 86 15 Gun 115 | 22 81 12 Cannon . | . . . Launcher 8 | . 5 3 Special . | . . . Kinetic 58 | 11 41 6 Thermal 57 | 11 40 6 Explosive 8 | . 5 3 Electromagnetic . | . . . Robot Hit Streak 12 | 12 7 5 Robot Miss Streak 4 | 2 4 2 Penetration Max . | . . . Secondary Targets . | . . . Shots Hit Robots 74 | 15 50 9 Core Hits 46 | 5 34 7 Critical Kills . | . . . Critical Parts Destroyed . | . . . Critical Strikes 4 | 2 2 . Burn 4 | 2 2 . Melee Attacks . | . . . Impact . | . . . Slashing . | . . . Piercing . | . . . Sneak Attacks . | . . . Combat Hostiles . | . . . Follow-up Attacks . | . . . Damage Inflicted 1467 | 185 1056 226 Guns 912 | 185 621 106 Cannons . | . . . Explosions 550 | . 435 115 Melee . | . . . Ramming 5 | . . 5 Kinetic 400 | 86 267 47 Thermal 512 | 99 354 59 Explosive 550 | . 435 115 Electromagnetic . | . . . Impact . | . . . Slashing . | . . . Piercing . | . . . Highest Corruption . | . . . Average Corruption . | . . . Corruption Purged . | . . . Corruption Blocked . | . . . Overload Shots . | . . . Overflow Damage 13 | . 13 . Projectiles . | . . . Explosions 13 | . 13 . Melee . | . . . Knockbacks . | . . . Impact . | . . . Kinetic . | . . . Secondary . | . . . Self-Inflicted Damage 35 | . 19 16 Shots 2 | . 1 1 Rammed 1 | . . 1 Targets Rammed 1 | . . 1 Kicked . | . . . Crushed . | . . . Highest Temperature 138 | 45 138 66 Average Temperature 35 | 18 40 29 Received Heat Transfer 201 | . 177 24 Siege Activations . | . . . Robots Corrupted . | . . . Combat Hostiles . | . . . Parts Fried . | . . . Impact Corruptions . | . . . Robots Melted . | . . . Combat Hostiles . | . . . Parts Melted 4 | 1 3 . Heat Transferred 1665 | 444 1073 148 Parts Sabotaged . | . . . Parts Stolen . | . . . Parts Stripped . | . . . Power Chain Reactions . | . . . Alert | -11 -10 -10 ------- Run | Yrd Mat Min Peak Influence 466 | 20 466 188 Initial 125 | . 13 125 Average 179 | 7 251 148 Maximum Alert Level 2 | . 2 . Low Security (%) 66 | 100 30 100 Level 1 31 | . 64 . Level 2 2 | . 5 . Level 3 . | . . . Level 4 . | . . . Level 5 . | . . . High Security . | . . . Max Security . | . . . Squads Dispatched 2 | . 2 . Investigation 1 | . 1 . Extermination . | . . . Reinforcement 1 | . 1 . Assault . | . . . Garrison . | . . . Intercept . | . . . Searches Triggered . | . . . Construction Impeded . | . . . Haulers Reinforced . | . . . Active Scanning Responses . | . . . Cargo Convoy Interrupts . | . . . Stealth | -11 -10 -10 --------- Run | Yrd Mat Min Distress Signals . | . . . Communications Jammed . | . . . Distress Signals . | . . . Times Spotted 21 | . 17 4 Peak Tracking Total 4 | . 4 2 Tactical Retreats 1 | . 1 . Traps | -11 -10 -10 ------- Run | Yrd Mat Min Traps Triggered . | . . . Indirectly . | . . . Trap Hack Attempts . | . . . Triggered . | . . . Disarmed . | . . . Reprogrammed . | . . . Reused . | . . . Traps Extracted . | . . . Installed . | . . . Triggered . | . . . Most Traps Carried 4 | . . 4 Machines | -11 -10 -10 ---------- Run | Yrd Mat Min Machines Disabled . | . . . Max in Single Turn . | . . . Machines Repaired . | . . . Machines Dismantled . | . . . Machines Sabotaged . | . . . Overloaded Fab Kills . | . . . Hacking | -11 -10 -10 --------- Run | Yrd Mat Min Machines Accessed 3 | . 3 . Terminals 2 | . 2 . Fabricators . | . . . Repair Stations . | . . . Recycling Units 1 | . 1 . Scanalyzers . | . . . Garrison Access . | . . . Total Hacks 7 | . 7 . Successful 3 | . 3 . Failed 4 | . 4 . Catastrophic . | . . . Database Lockouts . | . . . Manual 7 | . 7 . Terminals 6 | . 6 . Fabricators . | . . . Repair Stations . | . . . Recycling Units 1 | . 1 . Scanalyzers . | . . . Garrison Access . | . . . Terminal Hacks . | . . . Fabricator Hacks . | . . . Repair Station Hacks . | . . . Recycling Unit Hacks . | . . . Scanalyzer . | . . . Garrison Access Hacks . | . . . Unauthorized Hacks 3 | . 3 . Terminals 2 | . 2 . Assimilate 1 | . 1 . Skim 1 | . 1 . Fabricators . | . . . Repair Stations . | . . . Recycling Units 1 | . 1 . Tunnel 1 | . 1 . Scanalyzers . | . . . Garrison Access . | . . . Data Cores Recovered . | . . . Used . | . . . Hacking Detections 2 | . 2 . Full Trace Events . | . . . Feedback Events . | . . . Feedback Blocked . | . . . Robot Schematics Acquired . | . . . Robots Built . | . . . Authchips . | . . . Time . | . . . Total Robot Build Rating . | . . . Part Schematics Acquired . | . . . Parts Built . | . . . Authchips . | . . . Time . | . . . Total Part Build Rating . | . . . Parts Repaired . | . . . Time . | . . . Parts Recycled . | . . . Recycled Matter . | . . . Retrieved Matter . | . . . Retrieved Components . | . . . Parts Scanalyzed . | . . . Part Schematics Acquired . | . . . Parts Damaged . | . . . Bothacking | -11 -10 -10 ------------ Run | Yrd Mat Min Used RIF Installer . | . . . Robots Hacked . | . . . Non-combat . | . . . Combat . | . . . Robot Hacks Applied . | . . . Relay Couplers Released . | . . . Fabnet Peak Effective % . | . . . Robots Rewired . | . . . Allies Hacked . | . . . Hacks Repelled . | . . . Allies | -11 -10 -10 -------- Run | Yrd Mat Min Total Allies . | . . . Largest Group . | . . . Highest-Rated Group . | . . . Highest-Rated Ally . | . . . Total Orders . | . . . Ally Attacks . | . . . Total Damage . | . . . Kills . | . . . Allies Corrupted . | . . . Allies Melted . | . . . Intel | -11 -10 -10 ------- Run | Yrd Mat Min Robot Analysis Total . | . . . Derelict Logs Recovered 2 | . . 2 Drone Launches . | . . . Drone Recoveries . | . . . Exploration | -11 -10 -10 ------------- Run | Yrd Mat Min Turns Passed 1287 | 174 620 493 Spaces Moved 543 | 81 272 190 Core 4 | 4 . . Treads 539 | 77 272 190 Legs . | . . . Wheels . | . . . Hover . | . . . Flight . | . . . Fastest Speed 50 | 50 160 240 Average Speed 190 | 155 166 240 Slowest Speed 240 | 160 240 240 Overloaded Moves . | . . . Propulsion Burnouts . | . . . Robots Hopped . | . . . Cave-ins Triggered . | . . . Exploration Rate (%) 32 | 5 60 33 Regions Visited 2 Branch Regions 1 Pre-discovered Areas 1 | . 1 . Known Exits Taken . | . . . Unknown Exits Taken 2 | 1 1 . Scrap Searched . | . . . Spaces Dug . | . . . Terrain Destroyed 50 | . 27 23 Melee . | . . . Projectile . | . . . AOE 50 | . 27 23 Terrain Rammed . | . . . Walls Destroyed . | . . . Machines Disabled . | . . . Actions | -11 -10 -10 --------- Run | Yrd Mat Min Total 667 | 105 353 209 Wait 14 | . 14 . Move 541 | 80 271 190 Hop . | . . . Pick Up 19 | 7 8 4 Fast Attach 4 | 4 . . Attach 4 | 3 . 1 Detach . | . . . Swap 13 | . 10 3 Drop 5 | . 4 1 Fire 66 | 11 46 9 Melee . | . . . Ram . | . . . Kick . | . . . Crush 1 | . . 1 Escape Stasis . | . . . Rewire . | . . . Trap . | . . . Miscellaneous . | . . . Route ------- -11/Scrapyard -10/Materials (discovered 2 exits: [*Mat] / [*Min]) -10/Mines (discovered 3 exits: [*Mat x2] / [*Exi]) History --------- Turn | Location | Event 2 | -11/Scrapyard | Met Revision 17 9 | -11/Scrapyard | Discovered new exit (range 16) 175 | -11/Scrapyard | Entered Materials 309 | -10/Materials | Build established: Mutant 396 | -10/Materials | Discovered new exit (range 12) 643 | -10/Materials | Discovered new exit (range 10) 795 | -10/Materials | Entered Mines 801 | -10/Mines | Discovered new exit (range 12) 826 | -10/Mines | Learned Materials garrison access intel 934 | -10/Mines | Discovered new exit (range 6) 1042 | -10/Mines | Learned Materials emergency access door positions 1087 | -10/Mines | Found a hidden stash of uninstalled traps 1097 | -10/Mines | Build established: Scavenger-Mutant 1155 | -10/Mines | Assembled infested the area 1203 | -10/Mines | Met 8R-AWN 1259 | -10/Mines | Discovered new exit (range 5) 1278 | -10/Mines | Core integrity fell below 50% 1283 | -10/Mines | Core integrity fell below 20% 1288 | -10/Mines | Destroyed by D-53 Grenadier with Mini Grenade Launcher Last Messages --------------- 01224_ HV Slug penetrates as-42427. 01224_ as-42427 suffers critical hit (Destroy). 01224_ HV Slug penetrates Wall. 01224_ HV Slug penetrates as-42427. 01224_ as-42427 suffers critical hit (Destroy). 01224_ as-42427 destroyed. 01224_ HV Slug penetrates Wall. 01227_ U-05 Engineer builds a Wall. 01259_ EXIT=FOUND 01274_ Ion Engine destroyed. 01276_ The unstable cave ceiling collapses. 01278_ K-01 Serf collects debris. 01280_ Grenade Launcher destroyed. 01283_ The unstable cave ceiling collapses. 01286_ Lgt. Treads destroyed. 01286_ Imp. Terrain Scanner destroyed. 01287_ The unstable cave ceiling collapses. 01287_ Dropped Hcp. Storage Unit. 01288_ The unstable cave ceiling collapses. 01288_ Assault Rifle destroyed. Map ----- +----------------------------------------------------+ | ?????????????????????????? ??????? | | ????????????????????????????????? | | ?????????????????????????? ??????? | | ?????????????????#?"?????????????? | | ??????????????????????? ?????? ?## | | ?????????????????????#??? ??#?### | | ???????????????????????#?????### | | ??????????????#????#????????## | | ??????????? ????#?#???#?????# | | ????????????????????? ? ??#?## ### | | ?????????"""???????????????### ### | | ?????????""" ?????#?#??????# #?# | | ????????? #?????????????# ###?? | | ?????????# #????########### #???? | | ????#????# #???## #???# | | ?????????# ???## #??#? | | ??#??#???# #### ##########???? | | ?????????# #????????????# | | #????????# ##???#??###???? | | ?#?????### # # # #?????????#??## | | ?????### ##?#??????????? | | ????## # ##???????????? | | ????# ##?#??????#?? | | ????# < # % #??#?##????? | | ????# *[& # d %##??# ##???? | | ????# [@! %r ### ## #? | | ????# !&| % % ##?? | | ????## [ ## % % #?# | | ?????# ###### ##%%%% #?? | | #????##### ####??#?###### % #?? | | ??#?????####????????????#% #?? | | ???????????????????????? % ##?? | | ???????????????#????##?? ### ###?? | | ????????????????????????#??# # #? | | ???????????????????????????? "? # | | ?????#?????????#???????????? ##?## | | ?#??????????????????????????? ???? | | ?????????????????????????????#???? | | ???????????#?????????????????????? | | ?????????????????????????????????? | | ????????????????????????#?#??????? | | ?????????????????????????????????? | | ?????????????????????????????????? | | ?????????????????????????????????? | | ?????????????????????????????????? | | ?????????????????????????????????? | | ?????????????????????????????????? | | ?????????????????????????????????? | | ?????????????????????????????????? | | ?????????????????????????????????? | +----------------------------------------------------+ Best States ------------- Heat Dissipation 25 Energy Generation 10 Energy Capacity 250 Matter Stores 300 Matter Capacity 300 Sight Range 16 Terrain Scan Range 16 Terrain Scan Density 10 Evasion (%) 40 Recoil Reduction 2 Item Schematics ----------------- None Robot Schematics ------------------ None Fabricated ------------ Nothing Alien Tech Used ----------------- None Achievements -------------- None Challenges ------------ None Game ------ Seed RingNeutronCycler Manual? 0 Play Time 00:09:26 Cumulative 394.3 hours Start 2024.10.21 @ 13:39:20 End 2024.10.21 @ 13:50:16 Sessions 1 Manual Loads 0 Difficulty Rogue Special Mode None Game No. 275 Rogue 270 Adventurer 5 Explorer 0 Win Type - Total 9 Types 4/0/5/0/0/0/0/0/0 Lore% 75 Gallery% 88 Achievement% 73 Wizard Run 0 Options --------- Layout 2 ASCII 0 Keyboard 0 Movement Mouse Keybinds 0 Fullscreen 2 Font 24/Smallcaps Map View 50x44 Zoom Use 0% Tactical HUD 1 Map Filters NONE Filters NONE Steam 1 RUN: 9413c9da-5981-4ec4-aee5-563205b437ac